Workbook

Sheet Sheet1
B1: The Bisection Method
B3: This graphing utility illustrates
B4: the bisection method of root-finding
B5: for any desired function
D6: y = f(x)
B7: on any interval from x = a to x = b.
A9: Enter the function in terms of x: f(x) = | F9: x^2-x-1
A12: Now enter the interval for x:
C13: xMin = | D13: 1
C14: xMax = | D14: 2
B16: =IF(Sheet2!E$3*Sheet2!E$1027<0,"","This function does not change its sign on this interval") -> 
C17: =IF(Sheet2!E$3*Sheet2!E$1027<0,"","so it may not have a root on this interval") -> 
J19: The graph of the function y = f(x) = | N19: =F9 -> x^2-x-1
A20: Click each item below for suggestions and investigations | J20: =IF(Sheet2!K106="OK"," and its inverse ","") -> 
C21: Item 1 | K21: Interval | M21: Midpoint | N21: Height
C22: Item 2 | K22: =xMin -> 1 | L22: =D14 -> 2 | M22: =Sheet2!K3 -> 1.5 | N22: =Sheet2!L3 -> -0.25
C23: Item 3 | K23: =Sheet2!G4 -> 1.5 | L23: =Sheet2!I4 -> 2 | M23: =Sheet2!K4 -> 1.75 | N23: =Sheet2!L4 -> 0.3125
K24: =Sheet2!G5 -> 1.5 | L24: =Sheet2!I5 -> 1.75 | M24: =Sheet2!K5 -> 1.625 | N24: =Sheet2!L5 -> 0.015625
K25: =Sheet2!G6 -> 1.5 | L25: =Sheet2!I6 -> 1.625 | M25: =Sheet2!K6 -> 1.5625 | N25: =Sheet2!L6 -> -0.12109375
A26: To access/download all the DIGMath Apps for Calculus | K26: =Sheet2!G7 -> 1.5625 | L26: =Sheet2!I7 -> 1.625 | M26: =Sheet2!K7 -> 1.59375 | N26: =Sheet2!L7 -> -0.0537109375
A27: Click this link: | C27: DIGMath for Calculus | K27: =Sheet2!G8 -> 1.59375 | L27: =Sheet2!I8 -> 1.625 | M27: =Sheet2!K8 -> 1.609375 | N27: =Sheet2!L8 -> -0.01928710938
K28: =Sheet2!G9 -> 1.609375 | L28: =Sheet2!I9 -> 1.625 | M28: =Sheet2!K9 -> 1.6171875 | N28: =Sheet2!L9 -> -0.001892089844
A29: Created by: Sheldon P. Gordon | K29: =Sheet2!G10 -> 1.6171875 | L29: =Sheet2!I10 -> 1.625 | M29: =Sheet2!K10 -> 1.62109375 | N29: =Sheet2!L10 -> 0.006851196289
A30: Farmingdale State College | K30: =Sheet2!G11 -> 1.6171875 | L30: =Sheet2!I11 -> 1.62109375 | M30: =Sheet2!K11 -> 1.619140625 | N30: =Sheet2!L11 -> 0.002475738525
A31: Development of this module was supported by the | K31: =Sheet2!G12 -> 1.6171875 | L31: =Sheet2!I12 -> 1.619140625 | M31: =Sheet2!K12 -> 1.618164062 | N31: =Sheet2!L12 -> 0.0002908706665
A32: NSF's Division of Undergraduate Education
A33: under grants DUE-0310123 and DUE-0442160.

Sheet Sheet2
C1: n | D1: x | E1: y = f(x) | F1: Iteration | G1: xLeft | H1: yLeft | I1: xRight | J1: yRight | K1: xAvg | L1: yAvg | M1: nLeft | N1: nRight | O1: nAvg
E2: =Sheet1!#REF! -> 
C3: 0 | D3: =Sheet1!D13 -> 1 | E3: =x^2-x-1 -> -1 | F3: 1 | G3: =xMin -> 1 | H3: =E3 -> -1 | I3: =Sheet1!D14 -> 2 | J3: =E1027 -> 1 | K3: =(G3+I3)/2 -> 1.5 | L3: =LOOKUP(512,C$3:C$1027,E$3:E$1027) -> -0.25 | M3: 0 | N3: 1024 | O3: =(M3+N3)/2 -> 512
C4: 1 | D4: =D3+dx -> 1.000976562 | E4: -0.9990224838 | F4: 2 | G4: =IF(H3*L3<=0,G3,K3) -> 1.5 | H4: =IF(G4=G3,H3,L3) -> -0.25 | I4: =IF(G4=G3,K3,I3) -> 2 | J4: =IF(G4=G3,L3,J3) -> 1 | K4: =(G4+I4)/2 -> 1.75 | L4: =LOOKUP(O4,C$3:C$1027,E$3:E$1027) -> 0.3125 | M4: =IF(G4=G3,M3,O3) -> 512 | N4: =IF(G4=G3,O3,N3) -> 1024 | O4: =(M4+N4)/2 -> 768
C5: 2 | D5: 1.001953125 | E5: -0.9980430603 | F5: 3 | G5: =IF(H4*L4<=0,G4,K4) -> 1.5 | H5: =IF(G5=G4,H4,L4) -> -0.25 | I5: =IF(G5=G4,K4,I4) -> 1.75 | J5: =IF(G5=G4,L4,J4) -> 0.3125 | K5: =(G5+I5)/2 -> 1.625 | L5: =LOOKUP(O5,C$3:C$1027,E$3:E$1027) -> 0.015625 | M5: =IF(G5=G4,M4,O4) -> 512 | N5: =IF(G5=G4,O4,N4) -> 768 | O5: =(M5+N5)/2 -> 640
C6: 3 | D6: 1.002929688 | E6: -0.9970617294 | F6: 4 | G6: =IF(H5*L5<=0,G5,K5) -> 1.5 | H6: =IF(G6=G5,H5,L5) -> -0.25 | I6: =IF(G6=G5,K5,I5) -> 1.625 | J6: =IF(G6=G5,L5,J5) -> 0.015625 | K6: =(G6+I6)/2 -> 1.5625 | L6: =LOOKUP(O6,C$3:C$1027,E$3:E$1027) -> -0.12109375 | M6: =IF(G6=G5,M5,O5) -> 512 | N6: =IF(G6=G5,O5,N5) -> 640 | O6: =(M6+N6)/2 -> 576
C7: 4 | D7: 1.00390625 | E7: -0.9960784912 | F7: 5 | G7: 1.5625 | H7: -0.12109375 | I7: 1.625 | J7: 0.015625 | K7: 1.59375 | L7: -0.0537109375 | M7: 576 | N7: 640 | O7: 608 | Q7: 2 | R7: 1.618164
C8: 5 | D8: 1.004882812 | E8: -0.9950933456 | F8: 6 | G8: 1.59375 | H8: -0.0537109375 | I8: 1.625 | J8: 0.015625 | K8: 1.609375 | L8: -0.01928710938 | M8: 608 | N8: 640 | O8: 624 | Q8: 3 | R8: 1.839843
C9: 6 | D9: 1.005859375 | E9: -0.9941062927 | F9: 7 | G9: 1.609375 | H9: -0.01928710938 | I9: 1.625 | J9: 0.015625 | K9: 1.6171875 | L9: -0.001892089844 | M9: 624 | N9: 640 | O9: 632 | Q9: 4 | R9: 1.927734
C10: 7 | D10: 1.006835938 | E10: -0.9931173325 | F10: 8 | G10: 1.6171875 | H10: -0.001892089844 | I10: 1.625 | J10: 0.015625 | K10: 1.62109375 | L10: 0.006851196289 | M10: 632 | N10: 640 | O10: 636 | Q10: 5 | R10: 1.966796
C11: 8 | D11: 1.0078125 | E11: -0.9921264648 | F11: 9 | G11: 1.6171875 | H11: -0.001892089844 | I11: 1.62109375 | J11: 0.006851196289 | K11: 1.619140625 | L11: 0.002475738525 | M11: 632 | N11: 636 | O11: 634 | Q11: 6 | R11: 1.984375
A12: delta x = | B12: =(Sheet1!D14-Sheet1!D13)/1024 -> 0.0009765625 | C12: 9 | D12: 1.008789062 | E12: -0.9911336899 | F12: 10 | G12: 1.6171875 | H12: -0.001892089844 | I12: 1.619140625 | J12: 0.002475738525 | K12: 1.618164062 | L12: 0.0002908706665 | M12: 632 | N12: 634 | O12: 633 | Q12: 7 | R12: 1.992187
C13: 10 | D13: 1.009765625 | E13: -0.9901390076 | F13: 11 | G13: =IF(H12*L12<=0,G12,K12) -> 1.6171875 | H13: =IF(G13=G12,H12,L12) -> -0.001892089844 | I13: =IF(G13=G12,K12,I12) -> 1.618164062 | J13: =IF(G13=G12,L12,J12) -> 0.0002908706665 | K13: =(G13+I13)/2 -> 1.617675781 | L13: =LOOKUP(O13,C$3:C$1027,E$3:E$1027) -> -0.001892089844 | M13: =IF(G13=G12,M12,O12) -> 632 | N13: =IF(G13=G12,O12,N12) -> 633 | O13: =(M13+N13)/2 -> 632.5 | Q13: 8 | R13: 1.996093
C14: 11 | D14: 1.010742188 | E14: -0.9891424179 | F14: 12 | G14: 1.617675781 | H14: -0.001892089844 | I14: 1.618164062 | J14: 0.0002908706665 | K14: 1.617919922 | L14: -0.001892089844 | M14: 632.5 | N14: 633 | O14: 632.75 | Q14: 9 | R14: 1.998046
C15: 12 | D15: 1.01171875 | E15: -0.9881439209 | F15: 13 | G15: 1.617919922 | H15: -0.001892089844 | I15: 1.618164062 | J15: 0.0002908706665 | K15: 1.618041992 | L15: -0.001892089844 | M15: 632.75 | N15: 633 | O15: 632.875 | Q15: 10 | R15: 1.999023
C16: 13 | D16: 1.012695312 | E16: -0.9871435165 | F16: 14 | G16: 1.618041992 | H16: -0.001892089844 | I16: 1.618164062 | J16: 0.0002908706665 | K16: 1.618103027 | L16: -0.001892089844 | M16: 632.875 | N16: 633 | O16: 632.9375
C17: 14 | D17: 1.013671875 | E17: -0.9861412048 | F17: 15 | G17: 1.618103027 | H17: -0.001892089844 | I17: 1.618164062 | J17: 0.0002908706665 | K17: 1.618133545 | L17: -0.001892089844 | M17: 632.9375 | N17: 633 | O17: 632.96875
C18: 15 | D18: 1.014648438 | E18: -0.9851369858 | F18: 16 | G18: 1.618133545 | H18: -0.001892089844 | I18: 1.618164062 | J18: 0.0002908706665 | K18: 1.618148804 | L18: -0.001892089844 | M18: 632.96875 | N18: 633 | O18: 632.984375
C19: 16 | D19: 1.015625 | E19: -0.9841308594 | F19: 17 | G19: 1.618148804 | H19: -0.001892089844 | I19: 1.618164062 | J19: 0.0002908706665 | K19: 1.618156433 | L19: -0.001892089844 | M19: 632.984375 | N19: 633 | O19: 632.9921875
C20: 17 | D20: 1.016601562 | E20: -0.9831228256 | F20: 18 | G20: 1.618156433 | H20: -0.001892089844 | I20: 1.618164062 | J20: 0.0002908706665 | K20: 1.618160248 | L20: -0.001892089844 | M20: 632.9921875 | N20: 633 | O20: 632.9960938
C21: 18 | D21: 1.017578125 | E21: -0.9821128845 | F21: 19 | G21: 1.618160248 | H21: -0.001892089844 | I21: 1.618164062 | J21: 0.0002908706665 | K21: 1.618162155 | L21: -0.001892089844 | M21: 632.9960938 | N21: 633 | O21: 632.9980469
C22: 19 | D22: 1.018554688 | E22: -0.9811010361 | F22: 20 | G22: 1.618162155 | H22: -0.001892089844 | I22: 1.618164062 | J22: 0.0002908706665 | K22: 1.618163109 | L22: -0.001892089844 | M22: 632.9980469 | N22: 633 | O22: 632.9990234
C23: 20 | D23: 1.01953125 | E23: -0.9800872803 | F23: 21 | G23: 1.618163109 | H23: -0.001892089844 | I23: 1.618164062 | J23: 0.0002908706665 | K23: 1.618163586 | L23: -0.001892089844 | M23: 632.9990234 | N23: 633 | O23: 632.9995117
C24: 21 | D24: 1.020507812 | E24: -0.9790716171
C25: 22 | D25: 1.021484375 | E25: -0.9780540466
C26: 23 | D26: 1.022460938 | E26: -0.9770345688
C27: 24 | D27: 1.0234375 | E27: -0.9760131836
C28: 25 | D28: 1.024414062 | E28: -0.9749898911
C29: 26 | D29: 1.025390625 | E29: -0.9739646912
C30: 27 | D30: 1.026367188 | E30: -0.9729375839
C31: 28 | D31: 1.02734375 | E31: -0.9719085693
C32: 29 | D32: 1.028320312 | E32: -0.9708776474
C33: 30 | D33: 1.029296875 | E33: -0.9698448181
C34: 31 | D34: 1.030273438 | E34: -0.9688100815
C35: 32 | D35: 1.03125 | E35: -0.9677734375
C36: 33 | D36: 1.032226562 | E36: -0.9667348862
C37: 34 | D37: 1.033203125 | E37: -0.9656944275
C38: 35 | D38: 1.034179688 | E38: -0.9646520615
C39: 36 | D39: 1.03515625 | E39: -0.9636077881 | H39: Plotting | I39: x | J39: y
C40: 37 | D40: 1.036132812 | E40: -0.9625616074 | I40: =K3 -> 1.5 | J40: 0
C41: 38 | D41: 1.037109375 | E41: -0.9615135193 | I41: =I40 -> 1.5 | J41: =L3 -> -0.25
C42: 39 | D42: 1.038085938 | E42: -0.9604635239 | I42: =K4 -> 1.75 | J42: 0
C43: 40 | D43: 1.0390625 | E43: -0.9594116211 | I43: =I42 -> 1.75 | J43: =L4 -> 0.3125
C44: 41 | D44: 1.040039062 | E44: -0.958357811 | I44: =K5 -> 1.625 | J44: 0
C45: 42 | D45: 1.041015625 | E45: -0.9573020935 | I45: =I44 -> 1.625 | J45: =L5 -> 0.015625
C46: 43 | D46: 1.041992188 | E46: -0.9562444687 | I46: =K6 -> 1.5625 | J46: 0
C47: 44 | D47: 1.04296875 | E47: -0.9551849365 | I47: =I46 -> 1.5625 | J47: =L6 -> -0.12109375
C48: 45 | D48: 1.043945312 | E48: -0.954123497 | I48: =K7 -> 1.59375 | J48: 0
C49: 46 | D49: 1.044921875 | E49: -0.9530601501 | I49: =I48 -> 1.59375 | J49: =L7 -> -0.0537109375
C50: 47 | D50: 1.045898438 | E50: -0.9519948959 | I50: =K8 -> 1.609375 | J50: 0
C51: 48 | D51: 1.046875 | E51: -0.9509277344 | I51: =I50 -> 1.609375 | J51: =L8 -> -0.01928710938
C52: 49 | D52: 1.047851562 | E52: -0.9498586655 | I52: =K9 -> 1.6171875 | J52: 0
C53: 50 | D53: 1.048828125 | E53: -0.9487876892 | I53: =I52 -> 1.6171875 | J53: =L9 -> -0.001892089844
C54: 51 | D54: 1.049804688 | E54: -0.9477148056 | I54: =K10 -> 1.62109375 | J54: 0
C55: 52 | D55: 1.05078125 | E55: -0.9466400146 | I55: =I54 -> 1.62109375 | J55: =L10 -> 0.006851196289
C56: 53 | D56: 1.051757812 | E56: -0.9455633163 | I56: =K11 -> 1.619140625 | J56: 0
C57: 54 | D57: 1.052734375 | E57: -0.9444847107 | I57: =I56 -> 1.619140625 | J57: =L11 -> 0.002475738525
C58: 55 | D58: 1.053710938 | E58: -0.9434041977 | I58: =K12 -> 1.618164062 | J58: 0
C59: 56 | D59: 1.0546875 | E59: -0.9423217773 | I59: =I58 -> 1.618164062 | J59: =L12 -> 0.0002908706665
C60: 57 | D60: 1.055664062 | E60: -0.9412374496
C61: 58 | D61: 1.056640625 | E61: -0.9401512146
C62: 59 | D62: 1.057617188 | E62: -0.9390630722
C63: 60 | D63: 1.05859375 | E63: -0.9379730225
C64: 61 | D64: 1.059570312 | E64: -0.9368810654
C65: 62 | D65: 1.060546875 | E65: -0.9357872009
C66: 63 | D66: 1.061523438 | E66: -0.9346914291
C67: 64 | D67: 1.0625 | E67: =x^2-x-1 -> -0.93359375
C68: 65 | D68: =D67+dx -> 1.063476562 | E68: -0.9324941635
C69: 66 | D69: 1.064453125 | E69: -0.9313926697
C70: 67 | D70: 1.065429688 | E70: -0.9302892685
C71: 68 | D71: 1.06640625 | E71: -0.92918396
C72: 69 | D72: 1.067382812 | E72: -0.9280767441
C73: 70 | D73: 1.068359375 | E73: -0.9269676208
C74: 71 | D74: 1.069335938 | E74: -0.9258565903
C75: 72 | D75: 1.0703125 | E75: -0.9247436523
C76: 73 | D76: 1.071289062 | E76: -0.9236288071
C77: 74 | D77: 1.072265625 | E77: -0.9225120544
C78: 75 | D78: 1.073242188 | E78: -0.9213933945
C79: 76 | D79: 1.07421875 | E79: -0.9202728271
C80: 77 | D80: 1.075195312 | E80: -0.9191503525
C81: 78 | D81: 1.076171875 | E81: -0.9180259705
C82: 79 | D82: 1.077148438 | E82: -0.9168996811
C83: 80 | D83: 1.078125 | E83: -0.9157714844
C84: 81 | D84: 1.079101562 | E84: -0.9146413803
C85: 82 | D85: 1.080078125 | E85: -0.9135093689
C86: 83 | D86: 1.081054688 | E86: -0.9123754501
C87: 84 | D87: 1.08203125 | E87: -0.911239624
C88: 85 | D88: 1.083007812 | E88: -0.9101018906
C89: 86 | D89: 1.083984375 | E89: -0.9089622498
C90: 87 | D90: 1.084960938 | E90: -0.9078207016
C91: 88 | D91: 1.0859375 | E91: -0.9066772461
C92: 89 | D92: 1.086914062 | E92: -0.9055318832
C93: 90 | D93: 1.087890625 | E93: -0.904384613
C94: 91 | D94: 1.088867188 | E94: -0.9032354355
C95: 92 | D95: 1.08984375 | E95: -0.9020843506
C96: 93 | D96: 1.090820312 | E96: -0.9009313583
C97: 94 | D97: 1.091796875 | E97: -0.8997764587
C98: 95 | D98: 1.092773438 | E98: -0.8986196518
C99: 96 | D99: 1.09375 | E99: -0.8974609375
C100: 97 | D100: 1.094726562 | E100: -0.8963003159
C101: 98 | D101: 1.095703125 | E101: -0.8951377869
C102: 99 | D102: 1.096679688 | E102: -0.8939733505
C103: 100 | D103: 1.09765625 | E103: -0.8928070068
C104: 101 | D104: 1.098632812 | E104: -0.8916387558
C105: 102 | D105: 1.099609375 | E105: -0.8904685974
C106: 103 | D106: 1.100585938 | E106: -0.8892965317
C107: 104 | D107: 1.1015625 | E107: -0.8881225586
C108: 105 | D108: 1.102539062 | E108: -0.8869466782
C109: 106 | D109: 1.103515625 | E109: -0.8857688904
C110: 107 | D110: 1.104492188 | E110: -0.8845891953
C111: 108 | D111: 1.10546875 | E111: -0.8834075928
C112: 109 | D112: 1.106445312 | E112: -0.8822240829
C113: 110 | D113: 1.107421875 | E113: -0.8810386658
C114: 111 | D114: 1.108398438 | E114: -0.8798513412
C115: 112 | D115: 1.109375 | E115: -0.8786621094
C116: 113 | D116: 1.110351562 | E116: -0.8774709702
C117: 114 | D117: 1.111328125 | E117: -0.8762779236
C118: 115 | D118: 1.112304688 | E118: -0.8750829697
C119: 116 | D119: 1.11328125 | E119: -0.8738861084
C120: 117 | D120: 1.114257812 | E120: -0.8726873398
C121: 118 | D121: 1.115234375 | E121: -0.8714866638
C122: 119 | D122: 1.116210938 | E122: -0.8702840805
C123: 120 | D123: 1.1171875 | E123: -0.8690795898
C124: 121 | D124: 1.118164062 | E124: -0.8678731918
C125: 122 | D125: 1.119140625 | E125: -0.8666648865
C126: 123 | D126: 1.120117188 | E126: -0.8654546738
C127: 124 | D127: 1.12109375 | E127: -0.8642425537
C128: 125 | D128: 1.122070312 | E128: -0.8630285263
C129: 126 | D129: 1.123046875 | E129: -0.8618125916
C130: 127 | D130: 1.124023438 | E130: -0.8605947495
C131: 128 | D131: 1.125 | E131: =x^2-x-1 -> -0.859375
C132: 129 | D132: =D131+dx -> 1.125976562 | E132: -0.8581533432
C133: 130 | D133: 1.126953125 | E133: -0.8569297791
C134: 131 | D134: 1.127929688 | E134: -0.8557043076
C135: 132 | D135: 1.12890625 | E135: -0.8544769287
C136: 133 | D136: 1.129882812 | E136: -0.8532476425
C137: 134 | D137: 1.130859375 | E137: -0.852016449
C138: 135 | D138: 1.131835938 | E138: -0.8507833481
C139: 136 | D139: 1.1328125 | E139: -0.8495483398
C140: 137 | D140: 1.133789062 | E140: -0.8483114243
C141: 138 | D141: 1.134765625 | E141: -0.8470726013
C142: 139 | D142: 1.135742188 | E142: -0.845831871
C143: 140 | D143: 1.13671875 | E143: -0.8445892334
C144: 141 | D144: 1.137695312 | E144: -0.8433446884
C145: 142 | D145: 1.138671875 | E145: -0.8420982361
C146: 143 | D146: 1.139648438 | E146: -0.8408498764
C147: 144 | D147: 1.140625 | E147: -0.8395996094
C148: 145 | D148: 1.141601562 | E148: -0.838347435
C149: 146 | D149: 1.142578125 | E149: -0.8370933533
C150: 147 | D150: 1.143554688 | E150: -0.8358373642
C151: 148 | D151: 1.14453125 | E151: -0.8345794678
C152: 149 | D152: 1.145507812 | E152: -0.833319664
C153: 150 | D153: 1.146484375 | E153: -0.8320579529
C154: 151 | D154: 1.147460938 | E154: -0.8307943344
C155: 152 | D155: 1.1484375 | E155: -0.8295288086
C156: 153 | D156: 1.149414062 | E156: -0.8282613754
C157: 154 | D157: 1.150390625 | E157: -0.8269920349
C158: 155 | D158: 1.151367188 | E158: -0.825720787
C159: 156 | D159: 1.15234375 | E159: -0.8244476318
C160: 157 | D160: 1.153320312 | E160: -0.8231725693
C161: 158 | D161: 1.154296875 | E161: -0.8218955994
C162: 159 | D162: 1.155273438 | E162: -0.8206167221
C163: 160 | D163: 1.15625 | E163: -0.8193359375
C164: 161 | D164: 1.157226562 | E164: -0.8180532455
C165: 162 | D165: 1.158203125 | E165: -0.8167686462
C166: 163 | D166: 1.159179688 | E166: -0.8154821396
C167: 164 | D167: 1.16015625 | E167: -0.8141937256
C168: 165 | D168: 1.161132812 | E168: -0.8129034042
C169: 166 | D169: 1.162109375 | E169: -0.8116111755
C170: 167 | D170: 1.163085938 | E170: -0.8103170395
C171: 168 | D171: 1.1640625 | E171: -0.8090209961
C172: 169 | D172: 1.165039062 | E172: -0.8077230453
C173: 170 | D173: 1.166015625 | E173: -0.8064231873
C174: 171 | D174: 1.166992188 | E174: -0.8051214218
C175: 172 | D175: 1.16796875 | E175: -0.803817749
C176: 173 | D176: 1.168945312 | E176: -0.8025121689
C177: 174 | D177: 1.169921875 | E177: -0.8012046814
C178: 175 | D178: 1.170898438 | E178: -0.7998952866
C179: 176 | D179: 1.171875 | E179: -0.7985839844
C180: 177 | D180: 1.172851562 | E180: -0.7972707748
C181: 178 | D181: 1.173828125 | E181: -0.795955658
C182: 179 | D182: 1.174804688 | E182: -0.7946386337
C183: 180 | D183: 1.17578125 | E183: -0.7933197021
C184: 181 | D184: 1.176757812 | E184: -0.7919988632
C185: 182 | D185: 1.177734375 | E185: -0.7906761169
C186: 183 | D186: 1.178710938 | E186: -0.7893514633
C187: 184 | D187: 1.1796875 | E187: -0.7880249023
C188: 185 | D188: 1.180664062 | E188: -0.786696434
C189: 186 | D189: 1.181640625 | E189: -0.7853660583
C190: 187 | D190: 1.182617188 | E190: -0.7840337753
C191: 188 | D191: 1.18359375 | E191: -0.782699585
C192: 189 | D192: 1.184570312 | E192: -0.7813634872
C193: 190 | D193: 1.185546875 | E193: -0.7800254822
C194: 191 | D194: 1.186523438 | E194: -0.7786855698
C195: 192 | D195: 1.1875 | E195: =x^2-x-1 -> -0.77734375
C196: 193 | D196: =D195+dx -> 1.188476562 | E196: -0.7760000229
C197: 194 | D197: 1.189453125 | E197: -0.7746543884
C198: 195 | D198: 1.190429688 | E198: -0.7733068466
C199: 196 | D199: 1.19140625 | E199: -0.7719573975
C200: 197 | D200: 1.192382812 | E200: -0.770606041
... 827 more rows

Sheet Defining Function
A1: Defining a Function in Excel
A3: Computers have very specific rules you must follow when defining a function. If you don't, the program will either not work at all or will work incorrectly.
A5: 1. The Variable used should be the one named in the instruction, usually x, though sometimes y, t, Q (for an angle theta),
A6: or even x and y (for a function of two variables).
A8: 2. Order of Operations: There five arithmetic operations, addition (+), subtraction (-), multiplication (*), division (/), and exponentiation or power (^). When computers see any of these operation symbols, they perform the indicated steps in a very particular order. First, the power is done. Second, products and quotients of adjacent terms is done. Third, and last, sums and differences of adjacent terms are done. So, in 10*x^3 + 5*x – 7, say with x = 2, the first pass only calculates 2^3 and ignores the multiplications and the sums and differences to calculate 2^3 = 8. The second pass looks at 10*8 + 5*2 – 7 and only does the multiplications, so it produces 80 + 10 - 7. The third pass looks at the +’s and –‘s to produce 80 + 10 – 7 = 83.
A10: 3. Parentheses If you need an operation involving more than two adjacent terms, as in Ö4^3 + 6^2, the computer would take the square root of 4 to produce 2^3 + 6^2; it would then cube the 2 and square the 6 to produce 8 + 36; and finally it would add the 8 and the 36 to get 44. If you actually wanted the square root of the entire expression, you would need to use parentheses, as in Ö(4^3 + 6^2) to tell the computer to do all the operations inside the parentheses before taking the square root. Therefore, it would calculate (4^3 + 6^2) = 64 + 36 = 100 and then take the square root of Ö100 = 10.
A12: 4. Built-In Functions Computer programs have built-in functions for most common algebraic functions. In Excel, the square root function is denoted by SQRT(…), so SQRT(100) = 10. Alternatively, you could enter it as 100^.5 or 100^(1/2); notice that parentheses are needed to have the ½ done first. The common trig functions are SIN (…), COS (…), and TAN (…), where the arguments are automatically interpreted as being in radians, not degrees. The logarithm to the base 10 is represented by LOG (…) and the logarithm with the base e, known as the natural logarithm, is LN (…). The corresponding exponential function with base e is EXP (x). If x is the variable, then each of these would be SQRT (x), SIN (x), COS (x), TAN (x), LOG (x) (for log with base 10 ), LN (x) (for log with base e ), and EXP (x).

Sheet Sheet3
